Workbook

Sheet List1
C4: JAFAS 3
C5: Program pro výpočet činitele jasu k (-) v nekonečně dlouhé ulici.
C6: Zadávají se výšky řad domů A (m) a B (m) a šířka ulice T (m) a činitelé
C7: odrazu světla fasád RoA (-) a RoB (-), terénu RoT (-) a plochých střech
C8: RoS (-) obou řad objektů. | H8: Doporučené hodnoty
H9: ČSN EN 17037
C10: A | D10: 20 | E10: m | F10: RoA | G10: 0.3 | H10: 0.3
C11: B | D11: 20 | E11: m | F11: RoB | G11: 0.3 | H11: 0.3
C12: T | D12: 20 | E12: m | F12: RoT | G12: 0.2 | H12: 0.2
F13: RoS | G13: 0.2 | H13: 0.2
C14: Vypočtené hodnoty činitele jasu k (-) lze sledovat na obrázku níže. | L14: Nekonečná ulice
C15: V modře podbarvených polích jsou uvedeny vypočtené průměrné hodnoty činitele jasu k (-) fasády A, terénu T a fasády B.
C16: A | I16: B
C17: =AQ52 -> 0.1295067245 | I17: =AQ66 -> 0.1295067245
C18: =AQ53 -> 0.1161990553 | F18: PRŮMĚRNÉ HODNOTY | I18: =AQ65 -> 0.1161990553
C19: 0.1017192412 | E19: =AVERAGE(C17:C21) -> 0.1023895312 | G19: =AVERAGE(I17:I21) -> 0.1023895312 | I19: =AQ64 -> 0.1017192412
C20: 0.08819599929 | F20: =AVERAGE(D22:H22) -> 0.1044663422 | I20: =AQ63 -> 0.08819599929
C21: 0.07632663588 | F21: T | I21: =AQ62 -> 0.07632663588
D22: =AQ57 -> 0.09625819045 | E22: =AQ58 -> 0.1085078578 | F22: =AQ59 -> 0.1127996143 | G22: =AQ60 -> 0.1085078578 | H22: =AQ61 -> 0.09625819045 | L22: ="srpen 2024" -> srpen 2024
L23: doc. Ing. Jan Kaňka, Ph.D.
R26: =D10 -> 20 | T26: =G10 -> 0.3
R27: =D12 -> 20 | T27: =G12 -> 0.2
R28: =D11 -> 20 | T28: =G11 -> 0.3
T29: =G13 -> 0.2
S32: 0 | T32: =R33+0.1*$R$26 -> 20 | AC32: =ATAN($T$33/$S$43) -> 1.570240771 | AD32: =ATAN($T$33/$S$45) -> 1.352127381 | AE32: =ATAN($T$33/$S$47) -> 1.152571997 | AF32: =ATAN($T$33/$S$49) -> 0.9827937232 | AG32: =ATAN($T$33/$S$51) -> 0.8441539861 | AH32: =ATAN($T$33/$S$53) -> 0.7330637893 | AI32: =ATAN(($T$54-$T$33)/$R$27) -> -0.73253879 | AJ32: =ATAN(($T$56-$T$33)/$R$27) -> -0.6107259644 | AK32: =ATAN(($T$58-$T$33)/$R$27) -> -0.463647609 | AL32: =ATAN(($T$60-$T$33)/$R$27) -> -0.2914567945 | AM32: =ATAN(($T$62-$T$33)/$R$27) -> -0.09966865249 | AN32: =ATAN(($T$64-$T$33)/$R$27) -> 0.09966865249
P33: 1 | Q33: 0 | R33: =(1.1-P33*0.2)*$R$26 -> 18 | S33: 0 | T33: =R33 -> 18 | AC33: =ATAN($T$35/$S$43) -> 1.570082041 | AD33: =ATAN($T$35/$S$45) -> 1.292496668 | AE33: =ATAN($T$35/$S$47) -> 1.051650213 | AF33: =ATAN($T$35/$S$49) -> 0.8621700547 | AG33: =ATAN($T$35/$S$51) -> 0.7188299996 | AH33: =ATAN($T$35/$S$53) -> 0.6109609426 | AI33: =ATAN(($T$54-$T$35)/$R$27) -> -0.6103903151 | AJ33: =ATAN(($T$56-$T$35)/$R$27) -> -0.463647609 | AK33: =ATAN(($T$58-$T$35)/$R$27) -> -0.2914567945 | AL33: =ATAN(($T$60-$T$35)/$R$27) -> -0.09966865249 | AM33: =ATAN(($T$62-$T$35)/$R$27) -> 0.09966865249 | AN33: =ATAN(($T$64-$T$35)/$R$27) -> 0.2914567945
S34: 0 | T34: =R35+0.1*$R$26 -> 16 | AC34: =ATAN($T$37/$S$43) -> 1.569796327 | AD34: =ATAN($T$37/$S$45) -> 1.19028995 | AE34: =ATAN($T$37/$S$47) -> 0.8960553846 | AF34: =ATAN($T$37/$S$49) -> 0.6947382762 | AG34: =ATAN($T$37/$S$51) -> 0.5585993153 | AH34: =ATAN($T$37/$S$53) -> 0.463847689 | AI34: =ATAN(($T$54-$T$37)/$R$27) -> -0.463247529 | AJ34: =ATAN(($T$56-$T$37)/$R$27) -> -0.2914567945 | AK34: =ATAN(($T$58-$T$37)/$R$27) -> -0.09966865249 | AL34: =ATAN(($T$60-$T$37)/$R$27) -> 0.09966865249 | AM34: =ATAN(($T$62-$T$37)/$R$27) -> 0.2914567945 | AN34: =ATAN(($T$64-$T$37)/$R$27) -> 0.463647609
P35: 2 | Q35: 0 | R35: =(1.1-P35*0.2)*$R$26 -> 14 | S35: 0 | T35: =R35 -> 14 | AC35: =ATAN($T$39/$S$43) -> 1.569129662 | AD35: =ATAN($T$39/$S$45) -> 0.9827937232 | AE35: =ATAN($T$39/$S$47) -> 0.6435011088 | AF35: =ATAN($T$39/$S$49) -> 0.463647609 | AG35: =ATAN($T$39/$S$51) -> 0.3587706703 | AH35: =ATAN($T$39/$S$53) -> 0.2915944723 | AI35: =ATAN(($T$54-$T$39)/$R$27) -> -0.2909980158 | AJ35: =ATAN(($T$56-$T$39)/$R$27) -> -0.09966865249 | AK35: =ATAN(($T$58-$T$39)/$R$27) -> 0.09966865249 | AL35: =ATAN(($T$60-$T$39)/$R$27) -> 0.2914567945 | AM35: =ATAN(($T$62-$T$39)/$R$27) -> 0.463647609 | AN35: =ATAN(($T$64-$T$39)/$R$27) -> 0.6107259644
S36: 0 | T36: =R37+0.1*$R$26 -> 12 | AC36: =ATAN($T$41/$S$43) -> 1.565796368 | AD36: =ATAN($T$41/$S$45) -> 0.463647609 | AE36: =ATAN($T$41/$S$47) -> 0.2449786631 | AF36: =ATAN($T$41/$S$49) -> 0.1651486774 | AG36: =ATAN($T$41/$S$51) -> 0.1243549945 | AH36: =ATAN($T$41/$S$53) -> 0.09971818196 | AI36: =ATAN(($T$54-$T$41)/$R$27) -> -0.09917357852 | AJ36: =ATAN(($T$56-$T$41)/$R$27) -> 0.09966865249 | AK36: =ATAN(($T$58-$T$41)/$R$27) -> 0.2914567945 | AL36: =ATAN(($T$60-$T$41)/$R$27) -> 0.463647609 | AM36: =ATAN(($T$62-$T$41)/$R$27) -> 0.6107259644 | AN36: =ATAN(($T$64-$T$41)/$R$27) -> 0.7328151018
P37: 3 | Q37: 0 | R37: 10 | S37: 0 | T37: =R37 -> 10 | W37: =ATAN($T$32/$S$44) -> 1.471127674 | X37: =ATAN($T$34/$S$44) -> 1.446441332 | Y37: =ATAN($T$36/$S$44) -> 1.405647649 | Z37: =ATAN($T$38/$S$44) -> 1.325817664 | AA37: =ATAN($T$40/$S$44) -> 1.107148718 | AB37: =ATAN($T$42/$S$44) -> 0.004999958334 | AI37: =ATAN($T$54/($R$27-$S$44)) -> 0.0005555554984 | AJ37: =ATAN($T$56/($R$27-$S$44)) -> 0.2186689459 | AK37: =ATAN($T$58/($R$27-$S$44)) -> 0.4182243296 | AL37: =ATAN($T$60/($R$27-$S$44)) -> 0.5880026035 | AM37: =ATAN($T$62/($R$27-$S$44)) -> 0.7266423407 | AN37: =ATAN($T$64/($R$27-$S$44)) -> 0.837981225
S38: 0 | T38: =R39+0.1*$R$26 -> 8 | W38: =ATAN($T$32/$S$46) -> 1.279339532 | X38: =ATAN($T$34/$S$46) -> 1.212025657 | Y38: =ATAN($T$36/$S$46) -> 1.107148718 | Z38: =ATAN($T$38/$S$46) -> 0.927295218 | AA38: =ATAN($T$40/$S$46) -> 0.5880026035 | AB38: =ATAN($T$42/$S$46) -> 0.001666665123 | AI38: =ATAN($T$54/($R$27-$S$46)) -> 0.0007142855928 | AJ38: =ATAN($T$56/($R$27-$S$46)) -> 0.278299659 | AK38: =ATAN($T$58/($R$27-$S$46)) -> 0.5191461142 | AL38: =ATAN($T$60/($R$27-$S$46)) -> 0.7086262721 | AM38: =ATAN($T$62/($R$27-$S$46)) -> 0.8519663272 | AN38: =ATAN($T$64/($R$27-$S$46)) -> 0.9600703624
P39: 4 | Q39: 0 | R39: 6 | S39: 0 | T39: =R39 -> 6 | W39: =ATAN($T$32/$S$48) -> 1.107148718 | X39: =ATAN($T$34/$S$48) -> 1.012197011 | Y39: =ATAN($T$36/$S$48) -> 0.8760580506 | Z39: =ATAN($T$38/$S$48) -> 0.6747409422 | AA39: =ATAN($T$40/$S$48) -> 0.3805063771 | AB39: =ATAN($T$42/$S$48) -> 0.0009999996667 | AI39: =ATAN($T$54/($R$27-$S$48)) -> 0.0009999996667 | AJ39: =ATAN($T$56/($R$27-$S$48)) -> 0.3805063771 | AK39: =ATAN($T$58/($R$27-$S$48)) -> 0.6747409422 | AL39: =ATAN($T$60/($R$27-$S$48)) -> 0.8760580506 | AM39: =ATAN($T$62/($R$27-$S$48)) -> 1.012197011 | AN39: =ATAN($T$64/($R$27-$S$48)) -> 1.107148718
S40: 0 | T40: =R41+0.1*$R$26 -> 4 | W40: =ATAN($T$32/$S$50) -> 0.9600703624 | X40: =ATAN($T$34/$S$50) -> 0.8519663272 | Y40: =ATAN($T$36/$S$50) -> 0.7086262721 | Z40: =ATAN($T$38/$S$50) -> 0.5191461142 | AA40: =ATAN($T$40/$S$50) -> 0.278299659 | AB40: =ATAN($T$42/$S$50) -> 0.0007142855928 | AI40: =ATAN($T$54/($R$27-$S$50)) -> 0.001666665123 | AJ40: =ATAN($T$56/($R$27-$S$50)) -> 0.5880026035 | AK40: =ATAN($T$58/($R$27-$S$50)) -> 0.927295218 | AL40: =ATAN($T$60/($R$27-$S$50)) -> 1.107148718 | AM40: =ATAN($T$62/($R$27-$S$50)) -> 1.212025657 | AN40: =ATAN($T$64/($R$27-$S$50)) -> 1.279339532
P41: 5 | Q41: 0 | R41: 2 | S41: 0 | T41: =R41 -> 2 | W41: =ATAN($T$32/$S$52) -> 0.837981225 | X41: =ATAN($T$34/$S$52) -> 0.7266423407 | Y41: =ATAN($T$36/$S$52) -> 0.5880026035 | Z41: =ATAN($T$38/$S$52) -> 0.4182243296 | AA41: =ATAN($T$40/$S$52) -> 0.2186689459 | AB41: =ATAN($T$42/$S$52) -> 0.0005555554984 | AI41: =ATAN($T$54/($R$27-$S$52)) -> 0.004999958334 | AJ41: =ATAN($T$56/($R$27-$S$52)) -> 1.107148718 | AK41: =ATAN($T$58/($R$27-$S$52)) -> 1.325817664 | AL41: =ATAN($T$60/($R$27-$S$52)) -> 1.405647649 | AM41: =ATAN($T$62/($R$27-$S$52)) -> 1.446441332 | AN41: =ATAN($T$64/($R$27-$S$52)) -> 1.471127674
S42: 0 | T42: =R41-0.1*$R$26+0.01 -> 0.01 | W42: =ATAN(($T$32-$T$55)/$R$27) -> 0.7328151018 | X42: =ATAN(($T$34-$T$55)/$R$27) -> 0.6107259644 | Y42: =ATAN(($T$36-$T$55)/$R$27) -> 0.463647609 | Z42: =ATAN(($T$38-$T$55)/$R$27) -> 0.2914567945 | AA42: =ATAN(($T$40-$T$55)/$R$27) -> 0.09966865249 | AB42: =ATAN(($T$42-$T$55)/$R$27) -> -0.09917357852 | AC42: =ATAN($T$55/($R$27-$S$43)) -> 0.09971818196 | AD42: =ATAN($T$55/($R$27-$S$45)) -> 0.1243549945 | AE42: =ATAN($T$55/($R$27-$S$47)) -> 0.1651486774 | AF42: =ATAN($T$55/($R$27-$S$49)) -> 0.2449786631 | AG42: =ATAN($T$55/($R$27-$S$51)) -> 0.463647609 | AH42: =ATAN($T$55/($R$27-$S$53)) -> 1.565796368
S43: =Q44-0.1*$R$27+0.01 -> 0.01 | T43: 0 | W43: =ATAN(($T$32-$T$57)/$R$27) -> 0.6107259644 | X43: =ATAN(($T$34-$T$57)/$R$27) -> 0.463647609 | Y43: =ATAN(($T$36-$T$57)/$R$27) -> 0.2914567945 | Z43: =ATAN(($T$38-$T$57)/$R$27) -> 0.09966865249 | AA43: =ATAN(($T$40-$T$57)/$R$27) -> -0.09966865249 | AB43: =ATAN(($T$42-$T$57)/$R$27) -> -0.2909980158 | AC43: =ATAN($T$57/($R$27-$S$43)) -> 0.2915944723 | AD43: =ATAN($T$57/($R$27-$S$45)) -> 0.3587706703 | AE43: =ATAN($T$57/($R$27-$S$47)) -> 0.463647609 | AF43: =ATAN($T$57/($R$27-$S$49)) -> 0.6435011088 | AG43: =ATAN($T$57/($R$27-$S$51)) -> 0.9827937232 | AH43: =ATAN($T$57/($R$27-$S$53)) -> 1.569129662
P44: 6 | Q44: =(0.2*P44-1.1)*$R$27 -> 2 | R44: 0 | S44: =Q44 -> 2 | T44: 0 | W44: =ATAN(($T$32-$T$59)/$R$27) -> 0.463647609 | X44: =ATAN(($T$34-$T$59)/$R$27) -> 0.2914567945 | Y44: =ATAN(($T$36-$T$59)/$R$27) -> 0.09966865249 | Z44: =ATAN(($T$38-$T$59)/$R$27) -> -0.09966865249 | AA44: =ATAN(($T$40-$T$59)/$R$27) -> -0.2914567945 | AB44: =ATAN(($T$42-$T$59)/$R$27) -> -0.463247529 | AC44: =ATAN($T$59/($R$27-$S$43)) -> 0.463847689 | AD44: =ATAN($T$59/($R$27-$S$45)) -> 0.5585993153 | AE44: =ATAN($T$59/($R$27-$S$47)) -> 0.6947382762 | AF44: =ATAN($T$59/($R$27-$S$49)) -> 0.8960553846 | AG44: =ATAN($T$59/($R$27-$S$51)) -> 1.19028995 | AH44: =ATAN($T$59/($R$27-$S$53)) -> 1.569796327
S45: =Q44+0.1*$R$27 -> 4 | T45: 0 | W45: =ATAN(($T$32-$T$61)/$R$27) -> 0.2914567945 | X45: =ATAN(($T$34-$T$61)/$R$27) -> 0.09966865249 | Y45: =ATAN(($T$36-$T$61)/$R$27) -> -0.09966865249 | Z45: =ATAN(($T$38-$T$61)/$R$27) -> -0.2914567945 | AA45: =ATAN(($T$40-$T$61)/$R$27) -> -0.463647609 | AB45: =ATAN(($T$42-$T$61)/$R$27) -> -0.6103903151 | AC45: =ATAN($T$61/($R$27-$S$43)) -> 0.6109609426 | AD45: =ATAN($T$61/($R$27-$S$45)) -> 0.7188299996 | AE45: =ATAN($T$61/($R$27-$S$47)) -> 0.8621700547 | AF45: =ATAN($T$61/($R$27-$S$49)) -> 1.051650213 | AG45: =ATAN($T$61/($R$27-$S$51)) -> 1.292496668 | AH45: =ATAN($T$61/($R$27-$S$53)) -> 1.570082041
P46: 7 | Q46: =(0.2*P46-1.1)*$R$27 -> 6 | R46: 0 | S46: =Q46 -> 6 | T46: 0 | W46: =ATAN(($T$32-$T$63)/$R$27) -> 0.09966865249 | X46: =ATAN(($T$34-$T$63)/$R$27) -> -0.09966865249 | Y46: =ATAN(($T$36-$T$63)/$R$27) -> -0.2914567945 | Z46: =ATAN(($T$38-$T$63)/$R$27) -> -0.463647609 | AA46: =ATAN(($T$40-$T$63)/$R$27) -> -0.6107259644 | AB46: =ATAN(($T$42-$T$63)/$R$27) -> -0.73253879 | AC46: =ATAN($T$63/($R$27-$S$43)) -> 0.7330637893 | AD46: =ATAN($T$63/($R$27-$S$45)) -> 0.8441539861 | AE46: =ATAN($T$63/($R$27-$S$47)) -> 0.9827937232 | AF46: =ATAN($T$63/($R$27-$S$49)) -> 1.152571997 | AG46: =ATAN($T$63/($R$27-$S$51)) -> 1.352127381 | AH46: =ATAN($T$63/($R$27-$S$53)) -> 1.570240771
S47: =Q46+0.1*$R$27 -> 8 | T47: 0
P48: 8 | Q48: 10 | R48: 0 | S48: =Q48 -> 10 | T48: 0
S49: =Q48+0.1*$R$27 -> 12 | T49: 0
P50: 9 | Q50: 14 | R50: 0 | S50: =Q50 -> 14 | T50: 0
S51: =Q50+0.1*$R$27 -> 16 | T51: 0
P52: 10 | Q52: 18 | R52: 0 | S52: =Q52 -> 18 | T52: 0 | W52: =-1/$T$26 -> -3.333333333 | X52: 0 | Y52: 0 | Z52: 0 | AA52: 0 | AB52: =ABS(Vk(AC32)-Vk(AD32)) -> 0.01190639275 | AC52: 0.03118775578 | AD52: 0.04088062714 | AE52: 0.04232048783 | AF52: 0.0391298799 | AG52: =ABS(Vk(AI32)-Vk(AJ32)) -> 0.0476484904 | AH52: 0.06312437443 | AI52: 0.07993285497 | AJ52: 0.09392208327 | AK52: 0.09950371902 | AM52: =-ABS(vG(PI()/2)-vG(AN32)) -> -0.3730539477 | AO52: =IF(T33>$T$64,-0.396177078-ABS(Vk(AN32)*$T$29),AM52) -> -0.3730539477 | AQ52: =MMULT(MINVERSE(W52:AK66),AO52:AO66) -> 0.1295067245
S53: =Q52+0.1*$R$27-0.01 -> 19.99 | T53: 0 | W53: 0 | X53: =-1/$T$26 -> -3.333333333 | Y53: 0 | Z53: 0 | AA53: 0 | AB53: 0.01923789863 | AC53: 0.04664040276 | AD53: 0.05449326988 | AE53: 0.05037599725 | AF53: 0.04242488886 | AG53: 0.06298687097 | AH53: 0.07993285497 | AI53: 0.09392208327 | AJ53: 0.09950371902 | AK53: 0.09392208327 | AM53: =-ABS(vG(PI()/2)-vG(AN33)) -> -0.3195839779 | AO53: =IF(T35>$T$64,-0.396177078-ABS(Vk(AN33)*$T$29),AM53) -> -0.3195839779 | AQ53: 0.1161990553
S54: =$R$27 -> 20 | T54: =R55-0.1*$R$28+0.01 -> 0.01 | W54: 0 | X54: 0 | Y54: =-1/$T$26 -> -3.333333333 | Z54: 0 | AA54: 0 | AB54: 0.03576140456 | AC54: 0.07380394072 | AD54: 0.07034220489 | AE54: 0.05509272983 | AF54: 0.04130319822 | AG54: 0.07975391586 | AH54: 0.09392208327 | AI54: 0.09950371902 | AJ54: 0.09392208327 | AK54: 0.07993285497 | AM54: =-ABS(vG(PI()/2)-vG(AN34)) -> -0.2639673203 | AO54: =IF(T37>$T$64,-0.396177078-ABS(Vk(AN34)*$T$29),AM54) -> -0.2639673203 | AQ54: 0.1017192412
P55: 11 | Q55: =$R$27 -> 20 | R55: =(0.2*P55-2.1)*$R$28 -> 2 | S55: 20 | T55: =R55 -> 2 | W55: 0 | X55: 0 | Y55: 0 | Z55: =-1/$T$26 -> -3.333333333 | AA55: 0 | AB55: 0.08397415839 | AC55: 0.1160251472 | AD55: 0.07639320225 | AE55: 0.04804507696 | AF55: 0.03182184365 | AG55: 0.09370235301 | AH55: 0.09950371902 | AI55: 0.09392208327 | AJ55: 0.07993285497 | AK55: 0.06312437443 | AM55: =-ABS(vG(PI()/2)-vG(AN35)) -> -0.2134756668 | AO55: =IF(T39>$T$64,-0.396177078-ABS(Vk(AN35)*$T$29),AM55) -> -0.2134756668 | AQ55: 0.08819599929
S56: 20 | T56: =R55+0.1*$R$28 -> 4 | W56: 0 | X56: 0 | Y56: 0 | Z56: 0 | AA56: =-1/$T$26 -> -3.333333333 | AB56: 0.2763869524 | AC56: 0.1023389852 | AD56: 0.03906831887 | AE56: 0.02018212636 | AF56: 0.01224086601 | AG56: 0.09925740443 | AH56: 0.09392208327 | AI56: 0.07993285497 | AJ56: 0.06312437443 | AK56: 0.04775119363 | AM56: =-ABS(vG(PI()/2)-vG(AN36)) -> -0.171428595 | AO56: =IF(T41>$T$64,-0.396177078-ABS(Vk(AN36)*$T$29),AM56) -> -0.171428595 | AQ56: 0.07632663588
P57: 12 | Q57: =$R$27 -> 20 | R57: =(0.2*P57-2.1)*$R$28 -> 6 | S57: 20 | T57: =R57 -> 6 | W57: =ABS(Hk(W37)-Hk(X37)) -> 0.01226550778 | X57: 0.02018212636 | Y57: 0.03906831887 | Z57: 0.1023389852 | AA57: 0.2763869524 | AB57: =-1/$T$27 -> -5 | AC57: 0 | AD57: 0 | AE57: 0 | AF57: 0 | AG57: =ABS(Hk(AI37)-Hk(AJ37)) -> 0.01190639275 | AH57: 0.03118775578 | AI57: 0.04088062714 | AJ57: 0.04232048783 | AK57: 0.03922229353 | AM57: =-ABS(Hg(PI()/2)-Hg(W37))-ABS(Hg(PI()/2)-Hg(AN37)) -> -0.4254468594 | AO57: =AM57 -> -0.4254468594 | AQ57: 0.09625819045
S58: 20 | T58: =R57+0.1*$R$28 -> 8 | W58: 0.03188777801 | X58: 0.04804507696 | Y58: 0.07639320225 | Z58: 0.1160251472 | AA58: 0.08397415839 | AB58: 0 | AC58: =-1/$T$27 -> -5 | AD58: 0 | AE58: 0 | AF58: 0 | AG58: 0.01923789863 | AH58: 0.04664040276 | AI58: 0.05449326988 | AJ58: 0.05037599725 | AK58: 0.04252113175 | AM58: =-ABS(Hg(PI()/2)-Hg(W38))-ABS(Hg(PI()/2)-Hg(AN38)) -> -0.4859284466 | AO58: =AM58 -> -0.4859284466 | AQ58: 0.1085078578
P59: 13 | Q59: 20 | R59: =(0.2*P59-2.1)*$R$28 -> 10 | S59: 20 | T59: =R59 -> 10 | W59: 0.04139267225 | X59: 0.05509272983 | Y59: 0.07034220489 | Z59: 0.07380394072 | AA59: 0.03576140456 | AB59: 0 | AC59: 0 | AD59: =-1/$T$27 -> -5 | AE59: 0 | AF59: 0 | AG59: 0.03576140456 | AH59: 0.07380394072 | AI59: 0.07034220489 | AJ59: 0.05509272983 | AK59: 0.04139267225 | AM59: =-ABS(Hg(PI()/2)-Hg(W39))-ABS(Hg(PI()/2)-Hg(AN39)) -> -0.5076855349 | AO59: -0.5076855349 | AQ59: 0.1127996143
S60: 20 | T60: =R59+0.1*$R$28 -> 12 | W60: 0.04252113175 | X60: 0.05037599725 | Y60: 0.05449326988 | Z60: 0.04664040276 | AA60: 0.01923789863 | AB60: 0 | AC60: 0 | AD60: 0 | AE60: =-1/$T$27 -> -5 | AF60: 0 | AG60: 0.08397415839 | AH60: 0.1160251472 | AI60: 0.07639320225 | AJ60: 0.04804507696 | AK60: 0.03188777801 | AM60: =-ABS(Hg(PI()/2)-Hg(W40))-ABS(Hg(PI()/2)-Hg(AN40)) -> -0.4859284466 | AO60: -0.4859284466 | AQ60: 0.1085078578
P61: 14 | Q61: 20 | R61: =(0.2*P61-2.1)*$R$28 -> 14 | S61: 20 | T61: =R61 -> 14 | W61: 0.03922229353 | X61: 0.04232048783 | Y61: 0.04088062714 | Z61: 0.03118775578 | AA61: 0.01190639275 | AB61: 0 | AC61: 0 | AD61: 0 | AE61: 0 | AF61: =-1/$T$27 -> -5 | AG61: 0.2763869524 | AH61: 0.1023389852 | AI61: 0.03906831887 | AJ61: 0.02018212636 | AK61: 0.01226550778 | AM61: =-ABS(Hg(PI()/2)-Hg(W41))-ABS(Hg(PI()/2)-Hg(AN41)) -> -0.4254468594 | AO61: -0.4254468594 | AQ61: 0.09625819045
S62: 20 | T62: =R61+0.1*$R$28 -> 16 | W62: =ABS(Vk(W42)-Vk(X42)) -> 0.04775119363 | X62: 0.06312437443 | Y62: 0.07993285497 | Z62: 0.09392208327 | AA62: 0.09925740443 | AB62: =ABS(Vk(AC42)-Vk(AD42)) -> 0.01224086601 | AC62: 0.02018212636 | AD62: 0.03906831887 | AE62: 0.1023389852 | AF62: 0.2763869524 | AG62: =-1/$T$28 -> -3.333333333 | AH62: 0 | AI62: 0 | AJ62: 0 | AK62: 0 | AM62: =-ABS(vG(PI()/2)-vG(W42)) -> -0.171428595 | AO62: =IF(T55>$T$32,-0.396177078-ABS(Vk(W42)*$T$29),AM62) -> -0.171428595 | AQ62: 0.07632663588
P63: 15 | Q63: 20 | R63: =(0.2*P63-2.1)*$R$28 -> 18 | S63: 20 | T63: =R63 -> 18 | W63: 0.06312437443 | X63: 0.07993285497 | Y63: 0.09392208327 | Z63: 0.09950371902 | AA63: 0.09370235301 | AB63: 0.03182184365 | AC63: 0.04804507696 | AD63: 0.07639320225 | AE63: 0.1160251472 | AF63: 0.08397415839 | AG63: 0 | AH63: =-1/$T$28 -> -3.333333333 | AI63: 0 | AJ63: 0 | AK63: 0 | AM63: =-ABS(vG(PI()/2)-vG(W43)) -> -0.2134756668 | AO63: =IF(T57>$T$32,-0.396177078-ABS(Vk(W43)*$T$29),AM63) -> -0.2134756668 | AQ63: 0.08819599929
S64: 20 | T64: =R63+0.1*$R$28 -> 20 | W64: 0.07993285497 | X64: 0.09392208327 | Y64: 0.09950371902 | Z64: 0.09392208327 | AA64: 0.07975391586 | AB64: 0.04130319822 | AC64: 0.05509272983 | AD64: 0.07034220489 | AE64: 0.07380394072 | AF64: 0.03576140456 | AG64: 0 | AH64: 0 | AI64: =-1/$T$28 -> -3.333333333 | AJ64: 0 | AK64: 0 | AM64: =-ABS(vG(PI()/2)-vG(W44)) -> -0.2639673203 | AO64: =IF(T59>$T$32,-0.396177078-ABS(Vk(W44)*$T$29),AM64) -> -0.2639673203 | AQ64: 0.1017192412
W65: 0.09392208327 | X65: 0.09950371902 | Y65: 0.09392208327 | Z65: 0.07993285497 | AA65: 0.06298687097 | AB65: 0.04242488886 | AC65: 0.05037599725 | AD65: 0.05449326988 | AE65: 0.04664040276 | AF65: 0.01923789863 | AG65: 0 | AH65: 0 | AI65: 0 | AJ65: =-1/$T$28 -> -3.333333333 | AK65: 0 | AM65: =-ABS(vG(PI()/2)-vG(W45)) -> -0.3195839779 | AO65: =IF(T61>$T$32,-0.396177078-ABS(Vk(W45)*$T$29),AM65) -> -0.3195839779 | AQ65: 0.1161990553
W66: 0.09950371902 | X66: 0.09392208327 | Y66: 0.07993285497 | Z66: 0.06312437443 | AA66: 0.0476484904 | AB66: 0.0391298799 | AC66: 0.04232048783 | AD66: 0.04088062714 | AE66: 0.03118775578 | AF66: 0.01190639275 | AG66: 0 | AH66: 0 | AI66: 0 | AJ66: 0 | AK66: =-1/$T$28 -> -3.333333333 | AM66: =-ABS(vG(PI()/2)-vG(W46)) -> -0.3730539477 | AO66: =IF(T63>$T$32,-0.396177078-ABS(Vk(W46)*$T$29),AM66) -> -0.3730539477 | AQ66: 0.1295067245
